[Event "Titled Tuesday Blitz April 25 Early 2023"]
[White "mestrefeitosa19"]
[Black "Martic, Ivan"]
[BlackFideId "929301"]
[WhiteElo "2199"]
[BlackElo "2360"]
[Result "1-0"]
[Round "01"]
[TimeControl "180+2"]
[Date "2023.04.25"]
[WhiteClock "0:01:32"]
[BlackClock "0:02:02"]

1. c4 {[%clk 0:02:59]}  c6 {[%clk 0:02:58]} 2. e4 {[%clk 0:02:59]}  d5 {[%clk 0:02:57]} 3. exd5 {[%clk 0:03:00]}  cxd5 {[%clk 0:02:58]} 4. cxd5 {[%clk 0:03:00]}  Nf6 {[%clk 0:02:58]} 5. Nc3 {[%clk 0:03:01]}  Nxd5 {[%clk 0:02:54]} 6. Bc4 {[%clk 0:03:02]}  Nxc3 {[%clk 0:02:54]} 7. bxc3 {[%clk 0:03:03]}  g6 {[%clk 0:02:54]} 8. Nf3 {[%clk 0:03:02]}  Bg7 {[%clk 0:02:54]} 9. Bxf7+ {[%clk 0:02:31]}  Kxf7 {[%clk 0:02:53]} 10. Ng5+ {[%clk 0:02:31]}  Kg8 {[%clk 0:02:47]} 11. Qb3+ {[%clk 0:02:27]}  e6 {[%clk 0:02:47]} 12. d4 {[%clk 0:02:11]}  Qd5 {[%clk 0:02:40]} 13. Qa4 {[%clk 0:02:05]}  Bd7 {[%clk 0:02:31]} 14. Qb4 {[%clk 0:01:57]}  Qxg2 {[%clk 0:02:25]} 15. Qe7 {[%clk 0:01:40]}  Qxh1+ {[%clk 0:02:21]} 16. Ke2 {[%clk 0:01:41]}  Bb5+ {[%clk 0:02:16]} 17. Kd2 {[%clk 0:01:36]}  Qf3 {[%clk 0:02:07]} 18. Nxf3 {[%clk 0:01:35]}  Nc6 {[%clk 0:02:02]} 19. Qxe6+ {[%clk 0:01:32]}  Kf8 {[%clk 0:02:02]} 20. Ba3+ {[%clk 0:01:32]} 1-0


[Site "https://www.chess.com"]

[Event "Titled Tuesday Blitz April 25 Early 2023"]
[White "Toropov, Pavel"]
[Black "Stanisz, Patryk"]
[WhiteFideId "24129178"]
[BlackFideId "1123106"]
[WhiteElo "2182"]
[BlackElo "2069"]
[Result "0-1"]
[Round "01"]
[TimeControl "180+2"]
[Date "2023.04.25"]
[WhiteClock "0:00:20"]
[BlackClock "0:00:18"]

1. e4 {[%clk 0:02:52]}  c5 {[%clk 0:03:00]} 2. Nf3 {[%clk 0:02:51]}  Nc6 {[%clk 0:03:00]} 3. d4 {[%clk 0:02:49]}  cxd4 {[%clk 0:03:00]} 4. Nxd4 {[%clk 0:02:49]}  Nf6 {[%clk 0:03:01]} 5. Nc3 {[%clk 0:02:48]}  e5 {[%clk 0:03:01]} 6. Ndb5 {[%clk 0:02:48]}  d6 {[%clk 0:03:01]} 7. Bg5 {[%clk 0:02:44]}  a6 {[%clk 0:03:01]} 8. Na3 {[%clk 0:02:44]}  b5 {[%clk 0:03:02]} 9. Nd5 {[%clk 0:02:44]}  Qa5+ {[%clk 0:03:02]} 10. Bd2 {[%clk 0:02:40]}  Qd8 {[%clk 0:03:02]} 11. Nxf6+ {[%clk 0:02:31]}  Qxf6 {[%clk 0:03:02]} 12. c4 {[%clk 0:02:31]}  Be7 {[%clk 0:03:00]} 13. cxb5 {[%clk 0:02:26]}  Nd4 {[%clk 0:03:00]} 14. Nc2 {[%clk 0:02:24]}  Qg6 {[%clk 0:02:56]} 15. Nxd4 {[%clk 0:02:16]}  exd4 {[%clk 0:02:56]} 16. Qf3 {[%clk 0:01:52]}  O-O {[%clk 0:02:52]} 17. Bd3 {[%clk 0:01:47]}  Bg4 {[%clk 0:02:40]} 18. Qg3 {[%clk 0:01:46]}  Qh5 {[%clk 0:02:36]} 19. h3 {[%clk 0:01:33]}  Be6 {[%clk 0:02:23]} 20. bxa6 {[%clk 0:01:27]}  f5 {[%clk 0:02:03]} 21. exf5 {[%clk 0:00:55]}  Bxf5 {[%clk 0:02:01]} 22. Bxf5 {[%clk 0:00:52]}  Qxf5 {[%clk 0:02:02]} 23. O-O {[%clk 0:00:52]}  Rxa6 {[%clk 0:01:59]} 24. Qb3+ {[%clk 0:00:42]}  Kh8 {[%clk 0:01:57]} 25. Rad1 {[%clk 0:00:38]}  d5 {[%clk 0:01:56]} 26. a3 {[%clk 0:00:37]}  Rg6 {[%clk 0:01:54]} 27. f4 {[%clk 0:00:31]}  Bh4 {[%clk 0:01:44]} 28. Bb4 {[%clk 0:00:28]}  Re8 {[%clk 0:01:36]} 29. Qd3 {[%clk 0:00:28]}  Re4 {[%clk 0:01:26]} 30. Rf3 {[%clk 0:00:28]}  h6 {[%clk 0:01:20]} 31. Bd6 {[%clk 0:00:28]}  Rxd6 {[%clk 0:01:18]} 32. b4 {[%clk 0:00:27]}  Rde6 {[%clk 0:01:13]} 33. Kh2 {[%clk 0:00:22]}  Be7 {[%clk 0:01:07]} 34. b5 {[%clk 0:00:21]}  Bd6 {[%clk 0:01:06]} 35. Rdf1 {[%clk 0:00:18]}  Rf6 {[%clk 0:01:03]} 36. a4 {[%clk 0:00:16]}  Rxf4 {[%clk 0:00:57]} 37. Qxf5 {[%clk 0:00:14]}  R6xf5 {[%clk 0:00:56]} 38. Rxf4 {[%clk 0:00:14]}  Rxf4 {[%clk 0:00:42]} 39. Rxf4 {[%clk 0:00:13]}  Bxf4+ {[%clk 0:00:43]} 40. Kg1 {[%clk 0:00:13]}  Bd2 {[%clk 0:00:43]} 41. Kf1 {[%clk 0:00:13]}  Ba5 {[%clk 0:00:42]} 42. Ke2 {[%clk 0:00:14]}  Kg8 {[%clk 0:00:39]} 43. Kd3 {[%clk 0:00:14]}  Bb6 {[%clk 0:00:39]} 44. a5 {[%clk 0:00:14]}  Bxa5 {[%clk 0:00:39]} 45. Kxd4 {[%clk 0:00:15]}  Kf7 {[%clk 0:00:37]} 46. Kxd5 {[%clk 0:00:16]}  Kf6 {[%clk 0:00:34]} 47. Ke4 {[%clk 0:00:17]}  Bb6 {[%clk 0:00:31]} 48. Kf4 {[%clk 0:00:17]}  g6 {[%clk 0:00:27]} 49. Ke4 {[%clk 0:00:16]}  Kg5 {[%clk 0:00:26]} 50. Kf3 {[%clk 0:00:16]}  Kf5 {[%clk 0:00:26]} 51. g3 {[%clk 0:00:15]}  h5 {[%clk 0:00:23]} 52. h4 {[%clk 0:00:14]}  Bc5 {[%clk 0:00:22]} 53. Kg2 {[%clk 0:00:14]}  Kg4 {[%clk 0:00:22]} 54. Kh2 {[%clk 0:00:14]}  Bd6 {[%clk 0:00:22]} 55. Kh1 {[%clk 0:00:14]}  Kxg3 {[%clk 0:00:20]} 56. b6 {[%clk 0:00:15]}  Kxh4 {[%clk 0:00:20]} 57. b7 {[%clk 0:00:16]}  Bb8 {[%clk 0:00:20]} 58. Kg2 {[%clk 0:00:16]}  Kg4 {[%clk 0:00:21]} 59. Kf2 {[%clk 0:00:17]}  g5 {[%clk 0:00:22]} 60. Kg2 {[%clk 0:00:17]}  h4 {[%clk 0:00:22]} 61. Kh1 {[%clk 0:00:18]}  Kf3 {[%clk 0:00:22]} 62. Kg1 {[%clk 0:00:18]}  g4 {[%clk 0:00:22]} 63. Kh1 {[%clk 0:00:18]}  g3 {[%clk 0:00:22]} 64. Kg1 {[%clk 0:00:19]}  h3 {[%clk 0:00:22]} 65. Kh1 {[%clk 0:00:19]}  g2+ {[%clk 0:00:17]} 66. Kg1 {[%clk 0:00:19]}  Ba7+ {[%clk 0:00:17]} 67. Kh2 {[%clk 0:00:19]}  g1=Q+ {[%clk 0:00:18]} 68. Kxh3 {[%clk 0:00:20]}  Qg3# {[%clk 0:00:18]} 0-1


[Site "https://www.chess.com"]

[Event "Titled Tuesday Blitz April 25 Early 2023"]
[White "Elaisaz"]
[Black "Fiorito, Francisco"]
[BlackFideId "180165"]
[WhiteElo "2192"]
[BlackElo "2341"]
[Result "0-1"]
[Round "01"]
[TimeControl "180+2"]
[Date "2023.04.25"]
[WhiteClock "0:00:58"]
[BlackClock "0:02:14"]

1. e4 {[%clk 0:02:56]}  c5 {[%clk 0:02:59]} 2. Nf3 {[%clk 0:02:55]}  Nc6 {[%clk 0:02:59]} 3. d4 {[%clk 0:02:55]}  cxd4 {[%clk 0:03:00]} 4. Nxd4 {[%clk 0:02:56]}  g6 {[%clk 0:03:01]} 5. c4 {[%clk 0:02:55]}  Nf6 {[%clk 0:03:01]} 6. Nc3 {[%clk 0:02:55]}  d6 {[%clk 0:03:00]} 7. f3 {[%clk 0:02:48]}  Nxd4 {[%clk 0:02:59]} 8. Qxd4 {[%clk 0:02:48]}  Bg7 {[%clk 0:03:00]} 9. Be3 {[%clk 0:02:48]}  O-O {[%clk 0:03:00]} 10. Qd2 {[%clk 0:02:48]}  Be6 {[%clk 0:02:53]} 11. Be2 {[%clk 0:02:42]}  Qa5 {[%clk 0:02:54]} 12. Nd5 {[%clk 0:02:16]}  Qxd2+ {[%clk 0:02:51]} 13. Kxd2 {[%clk 0:02:16]}  Bxd5 {[%clk 0:02:52]} 14. cxd5 {[%clk 0:02:15]}  Nd7 {[%clk 0:02:43]} 15. Rab1 {[%clk 0:02:09]}  Rfc8 {[%clk 0:02:40]} 16. b4 {[%clk 0:02:05]}  Nb6 {[%clk 0:02:32]} 17. Rhc1 {[%clk 0:02:02]}  h5 {[%clk 0:02:25]} 18. g4 {[%clk 0:01:54]}  hxg4 {[%clk 0:02:23]} 19. fxg4 {[%clk 0:01:53]}  Be5 {[%clk 0:02:23]} 20. h4 {[%clk 0:01:51]}  Na4 {[%clk 0:02:15]} 21. a3 {[%clk 0:01:02]}  Nc3 {[%clk 0:02:14]} 22. Ra1 {[%clk 0:00:58]}  Nxe4+ {[%clk 0:02:14]} 0-1


[Site "https://www.chess.com"]

[Event "Titled Tuesday Blitz April 25 Early 2023"]
[White "Trakru, Rohun"]
[Black "Tarnowska, Aleksandra"]
[WhiteFideId "2097613"]
[BlackFideId "1180967"]
[WhiteElo "1852"]
[BlackElo "1776"]
[Result "0-1"]
[Round "01"]
[TimeControl "180+2"]
[Date "2023.04.25"]
[WhiteClock "0:00:48"]
[BlackClock "0:00:06"]

1. Nf3 {[%clk 0:03:00]}  d5 {[%clk 0:02:59]} 2. c4 {[%clk 0:02:55]}  c6 {[%clk 0:02:49]} 3. e3 {[%clk 0:02:53]}  Nf6 {[%clk 0:02:44]} 4. Nc3 {[%clk 0:02:48]}  Nbd7 {[%clk 0:02:23]} 5. d4 {[%clk 0:02:40]}  dxc4 {[%clk 0:01:52]} 6. Bxc4 {[%clk 0:02:38]}  Nb6 {[%clk 0:01:52]} 7. Bb3 {[%clk 0:02:17]}  Bf5 {[%clk 0:01:48]} 8. Ne5 {[%clk 0:01:58]}  e6 {[%clk 0:01:45]} 9. g4 {[%clk 0:01:55]}  Bg6 {[%clk 0:01:39]} 10. h4 {[%clk 0:01:54]}  Bd6 {[%clk 0:00:59]} 11. h5 {[%clk 0:01:48]}  Be4 {[%clk 0:00:58]} 12. Nxe4 {[%clk 0:01:43]}  Nxe4 {[%clk 0:00:59]} 13. Qf3 {[%clk 0:01:40]}  Ng5 {[%clk 0:00:56]} 14. Qe2 {[%clk 0:01:35]}  Bxe5 {[%clk 0:00:50]} 15. dxe5 {[%clk 0:01:35]}  Qe7 {[%clk 0:00:39]} 16. Bc2 {[%clk 0:01:20]}  O-O-O {[%clk 0:00:39]} 17. f4 {[%clk 0:01:18]}  Qb4+ {[%clk 0:00:31]} 18. Kf2 {[%clk 0:00:57]}  Ne4+ {[%clk 0:00:30]} 19. Kf3 {[%clk 0:00:58]}  Nd2+ {[%clk 0:00:26]} 20. Kg2 {[%clk 0:00:57]}  f6 {[%clk 0:00:09]} 21. a3 {[%clk 0:00:56]}  Qc5 {[%clk 0:00:03]} 22. Bd3 {[%clk 0:00:52]}  Qd5+ {[%clk 0:00:03]} 23. Kf2 {[%clk 0:00:44]}  Qxd3 {[%clk 0:00:02]} 24. Qxd3 {[%clk 0:00:45]}  Rxd3 {[%clk 0:00:02]} 25. Ke2 {[%clk 0:00:46]}  Rhd8 {[%clk 0:00:03]} 26. exf6 {[%clk 0:00:46]}  gxf6 {[%clk 0:00:03]} 27. g5 {[%clk 0:00:47]}  fxg5 {[%clk 0:00:03]} 28. fxg5 {[%clk 0:00:48]}  Ne4 {[%clk 0:00:03]} 29. g6 {[%clk 0:00:48]}  hxg6 {[%clk 0:00:04]} 30. hxg6 {[%clk 0:00:49]}  Ng3+ {[%clk 0:00:04]} 31. Kf3 {[%clk 0:00:49]}  Nxh1 {[%clk 0:00:04]} 32. Ke4 {[%clk 0:00:49]}  R3d5 {[%clk 0:00:04]} 33. b4 {[%clk 0:00:49]}  Rg8 {[%clk 0:00:04]} 34. Bb2 {[%clk 0:00:50]}  Rxg6 {[%clk 0:00:05]} 35. Rxh1 {[%clk 0:00:51]}  Rg4+ {[%clk 0:00:05]} 36. Kf3 {[%clk 0:00:51]}  Rg8 {[%clk 0:00:04]} 37. Rh7 {[%clk 0:00:51]}  Nc4 {[%clk 0:00:04]} 38. Bd4 {[%clk 0:00:52]}  Rf8+ {[%clk 0:00:04]} 39. Ke4 {[%clk 0:00:52]}  a6 {[%clk 0:00:05]} 40. Bc5 {[%clk 0:00:52]}  Re8 {[%clk 0:00:05]} 41. Rg7 {[%clk 0:00:51]}  b6 {[%clk 0:00:05]} 42. Bd4 {[%clk 0:00:51]}  c5 {[%clk 0:00:05]} 43. bxc5 {[%clk 0:00:51]}  bxc5 {[%clk 0:00:06]} 44. Bc3 {[%clk 0:00:51]}  Nd2+ {[%clk 0:00:06]} 45. Kf4 {[%clk 0:00:49]}  Rf8+ {[%clk 0:00:07]} 46. Kg3 {[%clk 0:00:48]}  Rf3+ {[%clk 0:00:07]} 47. Kg2 {[%clk 0:00:48]}  Rxe3 {[%clk 0:00:07]} 48. Ba5 {[%clk 0:00:47]}  Re2+ {[%clk 0:00:07]} 49. Kg3 {[%clk 0:00:46]}  Ne4+ {[%clk 0:00:06]} 50. Kf4 {[%clk 0:00:47]}  Nd6 {[%clk 0:00:06]} 51. Rc7+ {[%clk 0:00:47]}  Kb8 {[%clk 0:00:06]} 52. Rd7 {[%clk 0:00:47]}  Rf5+ {[%clk 0:00:06]} 53. Kg3 {[%clk 0:00:47]}  Ne4+ {[%clk 0:00:06]} 54. Kg4 {[%clk 0:00:48]}  Rg2+ {[%clk 0:00:06]} 55. Kh3 {[%clk 0:00:48]}  Rg8 {[%clk 0:00:06]} 56. Bc7+ {[%clk 0:00:48]}  Ka8 {[%clk 0:00:06]} 57. Be5 {[%clk 0:00:48]}  Rh5# {[%clk 0:00:06]} 0-1


[Site "https://www.chess.com"]

[Event "Titled Tuesday Blitz April 25 Early 2023"]
[White "Grossboss19"]
[Black "Elgersma, Onno"]
[BlackFideId "1053531"]
[WhiteElo "2171"]
[BlackElo "2252"]
[Result "1-0"]
[Round "01"]
[TimeControl "180+2"]
[Date "2023.04.25"]
[WhiteClock "0:00:12"]
[BlackClock "0:00:08"]

1. e4 {[%clk 0:02:57]}  d6 {[%clk 0:02:55]} 2. d3 {[%clk 0:02:53]}  Nf6 {[%clk 0:02:55]} 3. Nf3 {[%clk 0:02:53]}  c5 {[%clk 0:02:51]} 4. h3 {[%clk 0:02:50]}  Nc6 {[%clk 0:02:52]} 5. Be3 {[%clk 0:02:49]}  e5 {[%clk 0:02:51]} 6. Nc3 {[%clk 0:02:41]}  Be7 {[%clk 0:02:50]} 7. Qd2 {[%clk 0:02:31]}  Be6 {[%clk 0:02:46]} 8. Ng5 {[%clk 0:02:22]}  Bd7 {[%clk 0:02:45]} 9. f4 {[%clk 0:02:21]}  Nd4 {[%clk 0:02:43]} 10. f5 {[%clk 0:02:08]}  b5 {[%clk 0:02:41]} 11. Nd1 {[%clk 0:02:01]}  d5 {[%clk 0:02:27]} 12. c3 {[%clk 0:01:50]}  Nc6 {[%clk 0:02:26]} 13. Qc2 {[%clk 0:01:45]}  Rc8 {[%clk 0:02:20]} 14. g4 {[%clk 0:01:41]}  d4 {[%clk 0:02:17]} 15. Bd2 {[%clk 0:01:38]}  dxc3 {[%clk 0:01:56]} 16. bxc3 {[%clk 0:01:37]}  b4 {[%clk 0:01:57]} 17. Nf3 {[%clk 0:01:30]}  bxc3 {[%clk 0:01:56]} 18. Bxc3 {[%clk 0:01:27]}  Nd4 {[%clk 0:01:54]} 19. Qf2 {[%clk 0:01:22]}  c4 {[%clk 0:01:45]} 20. Nxe5 {[%clk 0:01:01]}  Nb5 {[%clk 0:01:44]} 21. Nxc4 {[%clk 0:00:53]}  Nxc3 {[%clk 0:01:33]} 22. Nxc3 {[%clk 0:00:53]}  Bc5 {[%clk 0:01:33]} 23. Qd2 {[%clk 0:00:50]}  Bd4 {[%clk 0:01:27]} 24. Rc1 {[%clk 0:00:49]}  Qc7 {[%clk 0:01:18]} 25. Ne2 {[%clk 0:00:44]}  Bc5 {[%clk 0:01:12]} 26. Bg2 {[%clk 0:00:36]}  O-O {[%clk 0:01:11]} 27. d4 {[%clk 0:00:28]}  Be7 {[%clk 0:00:25]} 28. e5 {[%clk 0:00:28]}  Ne8 {[%clk 0:00:24]} 29. Nd6 {[%clk 0:00:24]}  Qb6 {[%clk 0:00:09]} 30. Nxc8 {[%clk 0:00:22]}  Bxc8 {[%clk 0:00:10]} 31. Rxc8 {[%clk 0:00:19]}  Bb4 {[%clk 0:00:10]} 32. Nc3 {[%clk 0:00:20]}  Qa5 {[%clk 0:00:10]} 33. O-O {[%clk 0:00:18]}  Nc7 {[%clk 0:00:11]} 34. Rxf8+ {[%clk 0:00:18]}  Kxf8 {[%clk 0:00:11]} 35. Rc1 {[%clk 0:00:18]}  Nb5 {[%clk 0:00:11]} 36. Nd5 {[%clk 0:00:13]}  g6 {[%clk 0:00:08]} 37. Qxb4+ {[%clk 0:00:12]} 1-0


[Site "https://www.chess.com"]

[Event "Titled Tuesday Blitz April 25 Early 2023"]
[White "Safin, Robert"]
[Black "Sailer, Mike"]
[WhiteFideId "34189120"]
[BlackFideId "2012901"]
[WhiteElo "2245"]
[BlackElo "2109"]
[Result "1-0"]
[Round "01"]
[TimeControl "180+2"]
[Date "2023.04.25"]
[WhiteClock "0:00:04"]
[BlackClock "0:00:13"]

1. e4 {[%clk 0:02:55]}  d5 {[%clk 0:03:00]} 2. exd5 {[%clk 0:02:54]}  Qxd5 {[%clk 0:03:00]} 3. Nc3 {[%clk 0:02:54]}  Qd6 {[%clk 0:03:01]} 4. Nf3 {[%clk 0:02:50]}  Nf6 {[%clk 0:03:02]} 5. g3 {[%clk 0:02:48]}  Bf5 {[%clk 0:03:00]} 6. Bg2 {[%clk 0:02:47]}  c6 {[%clk 0:03:01]} 7. O-O {[%clk 0:02:42]}  e6 {[%clk 0:03:02]} 8. h3 {[%clk 0:02:38]}  h6 {[%clk 0:02:58]} 9. d3 {[%clk 0:02:36]}  Be7 {[%clk 0:02:56]} 10. Qe2 {[%clk 0:02:31]}  O-O {[%clk 0:02:53]} 11. Ne4 {[%clk 0:02:31]}  Qd8 {[%clk 0:02:41]} 12. b3 {[%clk 0:02:26]}  Nbd7 {[%clk 0:02:36]} 13. Bb2 {[%clk 0:02:26]}  Nc5 {[%clk 0:02:28]} 14. Nfd2 {[%clk 0:02:09]}  a5 {[%clk 0:02:18]} 15. a4 {[%clk 0:02:09]}  Bh7 {[%clk 0:02:01]} 16. Rfd1 {[%clk 0:02:01]}  Ncxe4 {[%clk 0:02:00]} 17. Nxe4 {[%clk 0:01:58]}  Nxe4 {[%clk 0:01:59]} 18. dxe4 {[%clk 0:01:54]}  Qc7 {[%clk 0:01:58]} 19. h4 {[%clk 0:01:46]}  Rfd8 {[%clk 0:01:55]} 20. Qg4 {[%clk 0:01:45]}  e5 {[%clk 0:01:40]} 21. Bh3 {[%clk 0:01:23]}  Bc5 {[%clk 0:01:19]} 22. Qf3 {[%clk 0:00:53]}  Bd4 {[%clk 0:01:19]} 23. c3 {[%clk 0:00:51]}  Bc5 {[%clk 0:01:15]} 24. Bf1 {[%clk 0:00:44]}  Qb6 {[%clk 0:01:15]} 25. Bc4 {[%clk 0:00:44]}  Qc7 {[%clk 0:01:08]} 26. Kg2 {[%clk 0:00:41]}  Rd7 {[%clk 0:01:01]} 27. h5 {[%clk 0:00:38]}  Rad8 {[%clk 0:01:00]} 28. Rxd7 {[%clk 0:00:07]}  Rxd7 {[%clk 0:00:56]} 29. Bc1 {[%clk 0:00:07]}  Kh8 {[%clk 0:00:45]} 30. Be3 {[%clk 0:00:05]}  Bxe3 {[%clk 0:00:44]} 31. Qxe3 {[%clk 0:00:06]}  f6 {[%clk 0:00:42]} 32. Re1 {[%clk 0:00:05]}  Qd8 {[%clk 0:00:40]} 33. Qc5 {[%clk 0:00:04]}  Bg8 {[%clk 0:00:31]} 34. Bxg8 {[%clk 0:00:03]}  Qxg8 {[%clk 0:00:32]} 35. b4 {[%clk 0:00:03]}  axb4 {[%clk 0:00:31]} 36. cxb4 {[%clk 0:00:04]}  Qf7 {[%clk 0:00:20]} 37. b5 {[%clk 0:00:03]}  cxb5 {[%clk 0:00:16]} 38. axb5 {[%clk 0:00:04]}  Qxh5 {[%clk 0:00:16]} 39. Qc8+ {[%clk 0:00:03]}  Kh7 {[%clk 0:00:14]} 40. Qxd7 {[%clk 0:00:04]}  Qg6 {[%clk 0:00:13]} 41. Qf5 {[%clk 0:00:04]} 1-0


[Site "https://www.chess.com"]

[Event "Titled Tuesday Blitz April 25 Early 2023"]
[White "dDobravcan"]
[Black "Guerrero Olmos, Sergio"]
[BlackFideId "2257238"]
[WhiteElo "2160"]
[BlackElo "2266"]
[Result "0-1"]
[Round "01"]
[TimeControl "180+2"]
[Date "2023.04.25"]
[WhiteClock "0:00:10"]
[BlackClock "0:00:51"]

1. d4 {[%clk 0:02:59]}  d5 {[%clk 0:02:59]} 2. Nc3 {[%clk 0:02:57]}  Bf5 {[%clk 0:02:59]} 3. Bf4 {[%clk 0:02:54]}  e6 {[%clk 0:02:58]} 4. f3 {[%clk 0:02:54]}  Nf6 {[%clk 0:02:51]} 5. g4 {[%clk 0:02:51]}  Bg6 {[%clk 0:02:50]} 6. h4 {[%clk 0:02:51]}  h6 {[%clk 0:02:42]} 7. e3 {[%clk 0:02:48]}  c5 {[%clk 0:02:41]} 8. Nb5 {[%clk 0:02:46]}  Na6 {[%clk 0:02:39]} 9. c3 {[%clk 0:02:40]}  Be7 {[%clk 0:02:29]} 10. a4 {[%clk 0:02:38]}  Nd7 {[%clk 0:02:06]} 11. Nd6+ {[%clk 0:02:24]}  Kf8 {[%clk 0:02:03]} 12. Nxb7 {[%clk 0:01:59]}  Qb6 {[%clk 0:02:01]} 13. Bxa6 {[%clk 0:01:50]}  Qxa6 {[%clk 0:02:00]} 14. Nxc5 {[%clk 0:01:47]}  Bxc5 {[%clk 0:01:48]} 15. dxc5 {[%clk 0:01:46]}  Nxc5 {[%clk 0:01:48]} 16. Kf2 {[%clk 0:01:30]}  Nd3+ {[%clk 0:01:38]} 17. Kg2 {[%clk 0:01:28]}  e5 {[%clk 0:01:35]} 18. Bg3 {[%clk 0:01:28]}  Qb6 {[%clk 0:01:18]} 19. b4 {[%clk 0:01:21]}  Qxe3 {[%clk 0:01:15]} 20. h5 {[%clk 0:01:15]}  Bh7 {[%clk 0:01:13]} 21. Nh3 {[%clk 0:01:03]}  Rc8 {[%clk 0:01:09]} 22. Nf2 {[%clk 0:00:58]}  Rxc3 {[%clk 0:01:04]} 23. Nxd3 {[%clk 0:00:18]}  Rxd3 {[%clk 0:01:00]} 24. Qc1 {[%clk 0:00:10]}  Qxf3+ {[%clk 0:00:51]} 0-1


[Site "https://www.chess.com"]

[Event "Titled Tuesday Blitz April 25 Early 2023"]
[White "Ronka, Erik"]
[Black "GregLeBarbare"]
[WhiteFideId "505080"]
[WhiteElo "2264"]
[BlackElo "2159"]
[Result "1/2-1/2"]
[Round "01"]
[TimeControl "180+2"]
[Date "2023.04.25"]
[WhiteClock "0:00:04"]
[BlackClock "0:00:09"]

1. e4 {[%clk 0:03:00]}  e6 {[%clk 0:02:58]} 2. d4 {[%clk 0:02:59]}  d5 {[%clk 0:02:58]} 3. Nc3 {[%clk 0:03:00]}  Bb4 {[%clk 0:02:58]} 4. e5 {[%clk 0:02:59]}  c5 {[%clk 0:02:58]} 5. a3 {[%clk 0:03:00]}  Bxc3+ {[%clk 0:02:59]} 6. bxc3 {[%clk 0:03:01]}  Qc7 {[%clk 0:02:59]} 7. Qg4 {[%clk 0:02:53]}  f5 {[%clk 0:02:59]} 8. Qg3 {[%clk 0:02:49]}  Nc6 {[%clk 0:02:59]} 9. Nf3 {[%clk 0:01:52]}  cxd4 {[%clk 0:02:53]} 10. cxd4 {[%clk 0:01:52]}  Nge7 {[%clk 0:02:53]} 11. c3 {[%clk 0:01:41]}  O-O {[%clk 0:02:52]} 12. Be2 {[%clk 0:01:34]}  Na5 {[%clk 0:02:39]} 13. O-O {[%clk 0:01:26]}  a6 {[%clk 0:02:03]} 14. a4 {[%clk 0:01:15]}  Bd7 {[%clk 0:01:52]} 15. Ba3 {[%clk 0:01:13]}  Be8 {[%clk 0:01:40]} 16. Ng5 {[%clk 0:01:04]}  Qd7 {[%clk 0:01:36]} 17. Bb4 {[%clk 0:00:43]}  Nc4 {[%clk 0:01:30]} 18. Rfd1 {[%clk 0:00:35]}  h6 {[%clk 0:01:23]} 19. Nh3 {[%clk 0:00:34]}  Kh7 {[%clk 0:01:12]} 20. Nf4 {[%clk 0:00:26]}  Rg8 {[%clk 0:00:50]} 21. Nd3 {[%clk 0:00:18]}  Nc6 {[%clk 0:00:35]} 22. Bc5 {[%clk 0:00:17]}  b6 {[%clk 0:00:23]} 23. Ba3 {[%clk 0:00:16]}  a5 {[%clk 0:00:24]} 24. Bc1 {[%clk 0:00:15]}  Bg6 {[%clk 0:00:20]} 25. h4 {[%clk 0:00:15]}  Qf7 {[%clk 0:00:20]} 26. Nf4 {[%clk 0:00:16]}  Ne7 {[%clk 0:00:19]} 27. h5 {[%clk 0:00:15]}  Bxh5 {[%clk 0:00:19]} 28. Nxh5 {[%clk 0:00:13]}  Raf8 {[%clk 0:00:19]} 29. Nf4 {[%clk 0:00:13]}  Qe8 {[%clk 0:00:20]} 30. Bh5 {[%clk 0:00:12]}  g6 {[%clk 0:00:20]} 31. Be2 {[%clk 0:00:13]}  Qf7 {[%clk 0:00:19]} 32. Bxc4 {[%clk 0:00:13]}  dxc4 {[%clk 0:00:19]} 33. Rb1 {[%clk 0:00:13]}  Nc8 {[%clk 0:00:18]} 34. d5 {[%clk 0:00:13]}  exd5 {[%clk 0:00:19]} 35. Nxd5 {[%clk 0:00:14]}  Rd8 {[%clk 0:00:19]} 36. Qf3 {[%clk 0:00:13]}  Kg7 {[%clk 0:00:18]} 37. Nf4 {[%clk 0:00:12]}  Rxd1+ {[%clk 0:00:17]} 38. Qxd1 {[%clk 0:00:13]}  Re8 {[%clk 0:00:17]} 39. e6 {[%clk 0:00:13]}  Qf6 {[%clk 0:00:17]} 40. Qd4 {[%clk 0:00:14]}  Ne7 {[%clk 0:00:17]} 41. Qxf6+ {[%clk 0:00:13]}  Kxf6 {[%clk 0:00:17]} 42. Rxb6 {[%clk 0:00:13]}  g5 {[%clk 0:00:18]} 43. Ne2 {[%clk 0:00:12]}  Nd5 {[%clk 0:00:18]} 44. Rd6 {[%clk 0:00:12]}  Rxe6 {[%clk 0:00:18]} 45. Rxe6+ {[%clk 0:00:07]}  Kxe6 {[%clk 0:00:19]} 46. f3 {[%clk 0:00:07]}  f4 {[%clk 0:00:18]} 47. Kf2 {[%clk 0:00:08]}  Kd6 {[%clk 0:00:19]} 48. g3 {[%clk 0:00:08]}  Nb6 {[%clk 0:00:20]} 49. gxf4 {[%clk 0:00:08]}  Nxa4 {[%clk 0:00:17]} 50. Ba3+ {[%clk 0:00:08]}  Kd5 {[%clk 0:00:16]} 51. fxg5 {[%clk 0:00:09]}  hxg5 {[%clk 0:00:16]} 52. Ke3 {[%clk 0:00:10]}  Nb6 {[%clk 0:00:14]} 53. Be7 {[%clk 0:00:10]}  a4 {[%clk 0:00:13]} 54. Bxg5 {[%clk 0:00:10]}  a3 {[%clk 0:00:13]} 55. Nc1 {[%clk 0:00:11]}  Na4 {[%clk 0:00:13]} 56. Be7 {[%clk 0:00:10]}  Nxc3 {[%clk 0:00:13]} 57. Bxa3 {[%clk 0:00:10]}  Nd1+ {[%clk 0:00:14]} 58. Kd2 {[%clk 0:00:10]}  Nf2 {[%clk 0:00:14]} 59. Ke2 {[%clk 0:00:10]}  Nh3 {[%clk 0:00:14]} 60. Bb2 {[%clk 0:00:10]}  Nf4+ {[%clk 0:00:14]} 61. Ke3 {[%clk 0:00:10]}  Ng2+ {[%clk 0:00:14]} 62. Kf2 {[%clk 0:00:11]}  Nf4 {[%clk 0:00:14]} 63. Bc3 {[%clk 0:00:11]}  Kc5 {[%clk 0:00:14]} 64. Kg3 {[%clk 0:00:11]}  Nd5 {[%clk 0:00:15]} 65. Ne2 {[%clk 0:00:09]}  Ne3 {[%clk 0:00:10]} 66. f4 {[%clk 0:00:08]}  Kd5 {[%clk 0:00:08]} 67. Kf3 {[%clk 0:00:08]}  Nf5 {[%clk 0:00:08]} 68. Ng3 {[%clk 0:00:07]}  Nd6 {[%clk 0:00:08]} 69. f5 {[%clk 0:00:06]}  Nxf5 {[%clk 0:00:08]} 70. Nxf5 {[%clk 0:00:06]}  Kc5 {[%clk 0:00:08]} 71. Ne3 {[%clk 0:00:07]}  Kb5 {[%clk 0:00:08]} 72. Ke4 {[%clk 0:00:07]}  Kc5 {[%clk 0:00:08]} 73. Ke5 {[%clk 0:00:08]}  Kb5 {[%clk 0:00:08]} 74. Kd4 {[%clk 0:00:08]}  Ka4 {[%clk 0:00:08]} 75. Kxc4 {[%clk 0:00:08]}  Ka3 {[%clk 0:00:09]} 76. Nd5 {[%clk 0:00:04]}  Ka4 {[%clk 0:00:09]} 77. Nb6+ {[%clk 0:00:03]}  Ka3 {[%clk 0:00:09]} 78. Nd5 {[%clk 0:00:02]}  Ka4 {[%clk 0:00:09]} 79. Ne3 {[%clk 0:00:03]}  Ka3 {[%clk 0:00:08]} 80. Nc2+ {[%clk 0:00:03]}  Ka2 {[%clk 0:00:09]} 81. Nb4+ {[%clk 0:00:03]}  Ka3 {[%clk 0:00:09]} 82. Nd5 {[%clk 0:00:04]} 1/2-1/2


[Site "https://www.chess.com"]